[Event "Live Chess"]
[Site "Chess.com"]
[Date "2023.09.16"]
[Round "-"]
[White "Gabriel0298"]
[Black "abcgames2904"]
[Result "0-1"]
[WhiteElo "1593"]
[BlackElo "1203"]
[TimeControl "900+5"]
[EndTime "16:14:02 PDT"]
[Termination "abcgames2904 venceu por desistência"]

1. e4 {[%clk 0:15:03.2]} 1... e5 {[%clk 0:15:03.7]} 2. Nf3 {[%clk 0:15:07.5]}
2... Nc6 {[%clk 0:15:07.9]} 3. Bc4 {[%clk 0:15:12]} 3... Nf6 {[%clk 0:15:11.9]}
4. O-O {[%clk 0:15:16.2]} 4... Be7 {[%clk 0:15:13.2]} 5. d3 {[%clk 0:15:19.6]}
5... O-O {[%clk 0:15:17]} 6. Bg5 {[%clk 0:15:23.4]} 6... Ng4 {[%clk 0:15:18.3]}
7. Bxe7 {[%clk 0:15:26.1]} 7... Qxe7 {[%clk 0:15:23.2]} 8. h3 {[%clk 0:15:30.3]}
8... Nf6 {[%clk 0:15:25.8]} 9. c3 {[%clk 0:15:33.6]} 9... a6 {[%clk 0:15:29.3]}
10. Nbd2 {[%clk 0:15:38.2]} 10... b5 {[%clk 0:15:33.9]} 11. Bb3 {[%clk
0:15:41.2]} 11... Bb7 {[%clk 0:15:38.2]} 12. Re1 {[%clk 0:15:41.6]} 12... d6
{[%clk 0:15:41.9]} 13. d4 {[%clk 0:15:41.4]} 13... exd4 {[%clk 0:15:28.7]} 14.
cxd4 {[%clk 0:15:46.3]} 14... a5 {[%clk 0:15:28.8]} 15. d5 {[%clk 0:15:49.9]}
15... Ne5 {[%clk 0:15:32.8]} 16. Nxe5 {[%clk 0:15:53.5]} 16... Qxe5 {[%clk
0:15:32.5]} 17. Rc1 {[%clk 0:15:54.9]} 17... Qxb2 {[%clk 0:15:34.8]} 18. Rxc7
{[%clk 0:15:57.4]} 18... Rab8 {[%clk 0:15:35.7]} 19. Nf3 {[%clk 0:15:49.2]}
19... a4 {[%clk 0:15:37.3]} 20. Qc2 {[%clk 0:15:46.3]} 20... Qxc2 {[%clk
0:15:26.3]} 21. Bxc2 {[%clk 0:15:51.2]} 21... Rfe8 {[%clk 0:15:24.1]} 22. Ng5
{[%clk 0:15:40.5]} 22... Rf8 {[%clk 0:15:16.6]} 23. e5 {[%clk 0:15:29.7]} 23...
Nxd5 {[%clk 0:15:18.2]} 24. Bxh7+ {[%clk 0:15:32.4]} 24... Kh8 {[%clk
0:15:21.2]} 25. Be4 {[%clk 0:15:33.3]} 25... Nxc7 {[%clk 0:15:23.5]} 26. Bxb7
{[%clk 0:15:35.3]} 26... Rxb7 {[%clk 0:15:28.4]} 27. exd6 {[%clk 0:15:40.2]}
27... Ne8 {[%clk 0:15:26.4]} 28. Nxf7+ {[%clk 0:15:39.7]} 28... Rfxf7 {[%clk
0:15:29.9]} 29. Rxe8+ {[%clk 0:15:43.5]} 29... Kh7 {[%clk 0:15:34.1]} 30. g4
{[%clk 0:15:44.4]} 30... Rbd7 {[%clk 0:15:37.8]} 31. Rb8 {[%clk 0:15:47]} 31...
Rxd6 {[%clk 0:15:39.8]} 32. Rxb5 {[%clk 0:15:51.6]} 32... Rf3 {[%clk 0:15:41.6]}
33. Rh5+ {[%clk 0:15:53]} 33... Rh6 {[%clk 0:15:45.5]} 34. Ra5 {[%clk
0:15:55.3]} 34... Ra3 {[%clk 0:15:45.5]} 0-1

[Event "Live Chess"]
[Site "Chess.com"]
[Date "2023.09.16"]
[Round "-"]
[White "GustavoFarinha"]
[Black "Japaawz"]
[Result "1-0"]
[WhiteElo "1692"]
[BlackElo "413"]
[TimeControl "900+5"]
[EndTime "16:15:04 PDT"]
[Termination "GustavoFarinha venceu por desistência"]

1. e4 {[%clk 0:15:03]} 1... e5 {[%clk 0:14:46.5]} 2. Nf3 {[%clk 0:15:04.3]} 2...
Nc6 {[%clk 0:14:47.9]} 3. Bc4 {[%clk 0:15:01.7]} 3... Nh6 {[%clk 0:14:48.2]} 4.
O-O {[%clk 0:14:56]} 4... Bd6 {[%clk 0:14:49.9]} 5. d3 {[%clk 0:14:59.4]} 5...
O-O {[%clk 0:14:53.2]} 6. Bxh6 {[%clk 0:14:57.4]} 6... gxh6 {[%clk 0:14:55.4]}
7. c3 {[%clk 0:14:58.7]} 7... Na5 {[%clk 0:14:24]} 8. Bb5 {[%clk 0:14:22.2]}
8... Kh8 {[%clk 0:14:06.2]} 9. Ba4 {[%clk 0:14:17.5]} 9... Rg8 {[%clk
0:14:08.1]} 10. Nbd2 {[%clk 0:13:34.4]} 10... Rg5 {[%clk 0:14:06.8]} 11. Nxg5
{[%clk 0:13:33.7]} 11... hxg5 {[%clk 0:14:10.6]} 12. Qh5 {[%clk 0:13:22.8]}
12... Bc5 {[%clk 0:14:09.5]} 13. Nf3 {[%clk 0:13:21.2]} 13... Be7 {[%clk
0:13:02]} 14. Nxe5 {[%clk 0:13:14.9]} 14... d6 {[%clk 0:13:01.9]} 15. Nxf7+
{[%clk 0:13:18.4]} 15... Kg8 {[%clk 0:12:56.6]} 16. Nxd8 {[%clk 0:13:21.6]}
16... Bxd8 {[%clk 0:13:01.5]} 17. Qe8+ {[%clk 0:13:23.9]} 17... Kg7 {[%clk
0:12:57.1]} 18. Qxd8 {[%clk 0:13:27.7]} 18... a6 {[%clk 0:12:41.8]} 19. Qxc7+
{[%clk 0:13:29.1]} 1-0

[Event "Live Chess"]
[Site "Chess.com"]
[Date "2023.09.16"]
[Round "-"]
[White "Lucas-LGM"]
[Black "samurai0718"]
[Result "0-1"]
[WhiteElo "1569"]
[BlackElo "1348"]
[TimeControl "900+5"]
[EndTime "16:15:20 PDT"]
[Termination "samurai0718 venceu por desistência"]

1. e4 {[%clk 0:15:00.7]} 1... c5 {[%clk 0:15:03.6]} 2. Nf3 {[%clk 0:15:03]} 2...
d6 {[%clk 0:15:07.7]} 3. Bc4 {[%clk 0:15:04.3]} 3... a6 {[%clk 0:15:08.4]} 4. d4
{[%clk 0:15:03.2]} 4... b5 {[%clk 0:15:07.7]} 5. Be2 {[%clk 0:15:04.3]} 5...
cxd4 {[%clk 0:15:06.6]} 6. Nxd4 {[%clk 0:15:03.8]} 6... Nf6 {[%clk 0:15:08.6]}
7. Bd3 {[%clk 0:14:56.4]} 7... Bb7 {[%clk 0:15:06]} 8. Qe2 {[%clk 0:14:56.1]}
8... g6 {[%clk 0:14:49]} 9. a3 {[%clk 0:14:58.3]} 9... Bg7 {[%clk 0:14:51.5]}
10. Nf3 {[%clk 0:14:56.3]} 10... O-O {[%clk 0:14:49.5]} 11. Nc3 {[%clk
0:14:58.3]} 11... e6 {[%clk 0:14:46.9]} 12. O-O {[%clk 0:15:01.6]} 12... Qc7
{[%clk 0:14:45]} 13. Bd2 {[%clk 0:14:47.1]} 13... d5 {[%clk 0:14:45.9]} 14. exd5
{[%clk 0:14:49.7]} 14... exd5 {[%clk 0:14:44.5]} 15. Be3 {[%clk 0:14:41.9]}
15... Re8 {[%clk 0:14:30.5]} 16. Qd2 {[%clk 0:14:35.5]} 16... d4 {[%clk
0:14:29]} 17. Bxd4 {[%clk 0:14:33.1]} 17... Bxf3 {[%clk 0:14:30.2]} 18. Bxf6
{[%clk 0:14:35.4]} 18... Bc6 {[%clk 0:14:03.9]} 19. Bxg7 {[%clk 0:14:35.4]}
19... Kxg7 {[%clk 0:14:08.8]} 20. Rfe1 {[%clk 0:14:14.2]} 20... Nd7 {[%clk
0:14:00]} 21. Re2 {[%clk 0:14:00.6]} 21... Nf6 {[%clk 0:13:54.7]} 22. Rae1
{[%clk 0:14:02]} 22... Rxe2 {[%clk 0:13:43.3]} 23. Rxe2 {[%clk 0:14:04.6]} 23...
Ng4 {[%clk 0:13:46.2]} 24. g3 {[%clk 0:13:36.9]} 24... Bf3 {[%clk 0:13:45.9]}
25. Re1 {[%clk 0:13:31.3]} 25... Rd8 {[%clk 0:13:27.7]} 26. h3 {[%clk
0:13:18.9]} 26... Nf6 {[%clk 0:13:21.9]} 27. Qe3 {[%clk 0:13:20.4]} 27... Re8
{[%clk 0:12:45.4]} 28. Qd2 {[%clk 0:13:22.6]} 28... Rd8 {[%clk 0:12:36.2]} 29.
Re3 {[%clk 0:12:44.5]} 29... Qb7 {[%clk 0:12:32.3]} 30. Qe1 {[%clk 0:12:14.6]}
30... Bg2 {[%clk 0:12:32.3]} 31. Bf1 {[%clk 0:11:56.7]} 31... Bh1 {[%clk
0:12:28]} 32. f3 {[%clk 0:11:48.5]} 32... Bxf3 {[%clk 0:12:26.3]} 33. Qf2 {[%clk
0:11:49.7]} 33... Bc6 {[%clk 0:11:21]} 34. Bg2 {[%clk 0:11:49.2]} 34... Bxg2
{[%clk 0:11:17.9]} 35. Qxg2 {[%clk 0:11:52.6]} 35... Qb6 {[%clk 0:10:55.9]} 36.
Qe2 {[%clk 0:11:47.2]} 36... Re8 {[%clk 0:10:49]} 37. Kf2 {[%clk 0:11:45.9]}
37... a5 {[%clk 0:10:19.3]} 38. Nxb5 {[%clk 0:11:43.6]} 38... Ne4+ {[%clk
0:10:16.2]} 39. Kg2 {[%clk 0:11:24]} 39... f5 {[%clk 0:09:43.1]} 40. Rb3 {[%clk
0:09:48.7]} 40... Qc6 {[%clk 0:09:37.5]} 41. Kh2 {[%clk 0:09:27.2]} 41... Nxg3
{[%clk 0:09:28.4]} 42. Qd3 {[%clk 0:08:37.7]} 42... Re2+ {[%clk 0:09:04.5]} 43.
Kxg3 {[%clk 0:07:54.7]} 43... Qg2+ {[%clk 0:08:40.1]} 44. Kh4 {[%clk 0:07:52.8]}
44... Re4+ {[%clk 0:08:32.7]} 45. Qxe4 {[%clk 0:07:47.6]} 45... Qxe4+ {[%clk
0:08:08.9]} 46. Kg3 {[%clk 0:07:48]} 46... f4+ {[%clk 0:08:12.4]} 47. Kf2 {[%clk
0:07:46.8]} 47... Qxc2+ {[%clk 0:08:15.9]} 0-1

[Event "Live Chess"]
[Site "Chess.com"]
[Date "2023.09.16"]
[Round "-"]
[White "Cocecion"]
[Black "Cantalicioo"]
[Result "0-1"]
[WhiteElo "1651"]
[BlackElo "1584"]
[TimeControl "900+5"]
[EndTime "16:16:24 PDT"]
[Termination "Cantalicioo venceu por desistência"]

1. e4 {[%clk 0:15:01.9]} 1... c5 {[%clk 0:15:03.4]} 2. Nf3 {[%clk 0:15:05.1]}
2... g6 {[%clk 0:15:07.3]} 3. d4 {[%clk 0:15:08]} 3... cxd4 {[%clk 0:15:11.8]}
4. Nxd4 {[%clk 0:15:12]} 4... Bg7 {[%clk 0:15:16.3]} 5. Nc3 {[%clk 0:15:16.1]}
5... Nc6 {[%clk 0:15:20.7]} 6. Nb3 {[%clk 0:15:18.9]} 6... Nf6 {[%clk 0:15:20]}
7. Be3 {[%clk 0:15:18.3]} 7... a6 {[%clk 0:15:23.5]} 8. f3 {[%clk 0:15:22.5]}
8... O-O {[%clk 0:15:26.8]} 9. Bc4 {[%clk 0:15:26.9]} 9... b5 {[%clk 0:15:22.3]}
10. Bd5 {[%clk 0:15:27.6]} 10... Nxd5 {[%clk 0:15:18.1]} 11. Qxd5 {[%clk
0:15:22.5]} 11... Bb7 {[%clk 0:15:16.3]} 12. Qd2 {[%clk 0:15:25.7]} 12... e6
{[%clk 0:15:13.5]} 13. O-O-O {[%clk 0:15:29.2]} 13... b4 {[%clk 0:15:12.9]} 14.
Na4 {[%clk 0:15:27.4]} 14... d5 {[%clk 0:14:50.1]} 15. exd5 {[%clk 0:15:27.9]}
15... exd5 {[%clk 0:14:53.3]} 16. Qxd5 {[%clk 0:15:23.8]} 16... Qxd5 {[%clk
0:14:56.6]} 17. Rxd5 {[%clk 0:15:26.9]} 17... Rfe8 {[%clk 0:14:49.3]} 18. Bf4
{[%clk 0:13:39.6]} 18... Re2 {[%clk 0:14:12.8]} 19. Nac5 {[%clk 0:13:20.7]}
19... Bc8 {[%clk 0:13:08.9]} 20. Rd2 {[%clk 0:13:23.1]} 20... Rxd2 {[%clk
0:12:52.2]} 21. Nxd2 {[%clk 0:13:22]} 21... Nd4 {[%clk 0:12:46.7]} 22. Re1
{[%clk 0:13:19.3]} 22... Bf5 {[%clk 0:12:28.5]} 23. Nde4 {[%clk 0:10:57.8]}
23... Rc8 {[%clk 0:11:35.2]} 24. g4 {[%clk 0:10:50.5]} 24... Bxe4 {[%clk
0:11:30.2]} 25. Rxe4 {[%clk 0:10:53.7]} 25... Rxc5 {[%clk 0:11:22.6]} 26. Re8+
{[%clk 0:10:55.9]} 26... Bf8 {[%clk 0:11:20.3]} 27. Bh6 {[%clk 0:10:59.7]} 27...
Ne6 {[%clk 0:11:15.3]} 28. f4 {[%clk 0:10:59.3]} 28... f5 {[%clk 0:11:10.2]} 29.
Bxf8 {[%clk 0:10:38.3]} 29... Nxf8 {[%clk 0:11:08.2]} 30. gxf5 {[%clk
0:10:41.6]} 30... Rxf5 {[%clk 0:11:06.8]} 31. Re4 {[%clk 0:10:44.7]} 31... a5
{[%clk 0:10:46.8]} 32. Kd2 {[%clk 0:10:47.2]} 32... Nd7 {[%clk 0:10:42.6]} 33.
h4 {[%clk 0:10:49.3]} 33... Nc5 {[%clk 0:10:41.9]} 34. Rc4 {[%clk 0:10:47.7]}
34... Kf7 {[%clk 0:10:38.5]} 35. Ke3 {[%clk 0:10:48.8]} 35... Ke6 {[%clk
0:10:29.5]} 36. Kd4 {[%clk 0:10:44.7]} 36... Rxf4+ {[%clk 0:10:10.5]} 37. Kxc5
{[%clk 0:10:48.8]} 37... Rxc4+ {[%clk 0:10:14.3]} 38. Kxc4 {[%clk 0:10:53.7]}
38... Kf5 {[%clk 0:10:19]} 0-1

[Event "Live Chess"]
[Site "Chess.com"]
[Date "2023.09.16"]
[Round "-"]
[White "Joasgodoy"]
[Black "silvaaps"]
[Result "0-1"]
[WhiteElo "675"]
[BlackElo "767"]
[TimeControl "900+5"]
[EndTime "16:17:21 PDT"]
[Termination "silvaaps venceu por xeque-mate"]

1. e4 {[%clk 0:14:56.7]} 1... d5 {[%clk 0:15:03.6]} 2. exd5 {[%clk 0:14:57.3]}
2... Qxd5 {[%clk 0:15:07.9]} 3. Nf3 {[%clk 0:15:00.1]} 3... Qe6+ {[%clk
0:15:11.9]} 4. Be2 {[%clk 0:15:02.2]} 4... Nc6 {[%clk 0:15:15.4]} 5. Nc3 {[%clk
0:15:01.5]} 5... Nd4 {[%clk 0:15:17.3]} 6. O-O {[%clk 0:15:00.1]} 6... Nxe2+
{[%clk 0:15:20.2]} 7. Qxe2 {[%clk 0:14:53.6]} 7... Qxe2 {[%clk 0:15:24.1]} 8.
Nxe2 {[%clk 0:14:57.5]} 8... Bg4 {[%clk 0:15:26.3]} 9. Nfd4 {[%clk 0:14:45]}
9... Bxe2 {[%clk 0:15:29.3]} 10. Nxe2 {[%clk 0:14:47.8]} 10... O-O-O {[%clk
0:15:33.9]} 11. d3 {[%clk 0:14:43]} 11... e6 {[%clk 0:15:37.9]} 12. Nc3 {[%clk
0:14:35.3]} 12... Bb4 {[%clk 0:15:41.9]} 13. a3 {[%clk 0:14:32.1]} 13... Bxc3
{[%clk 0:15:45.8]} 14. bxc3 {[%clk 0:14:34.7]} 14... Nf6 {[%clk 0:15:50.4]} 15.
Bg5 {[%clk 0:14:29.5]} 15... h6 {[%clk 0:15:53.9]} 16. Bh4 {[%clk 0:14:29.9]}
16... g5 {[%clk 0:15:56.8]} 17. Bg3 {[%clk 0:14:30.5]} 17... Nd5 {[%clk
0:16:00.4]} 18. Be5 {[%clk 0:14:15.8]} 18... f6 {[%clk 0:15:57.2]} 19. Bd4
{[%clk 0:14:10.3]} 19... e5 {[%clk 0:16:00.1]} 20. Bxa7 {[%clk 0:14:08.8]} 20...
b6 {[%clk 0:16:03.8]} 21. c4 {[%clk 0:13:50]} 21... Nc3 {[%clk 0:16:05]} 22. a4
{[%clk 0:13:38.6]} 22... Kb7 {[%clk 0:16:06.5]} 23. Ra3 {[%clk 0:13:34.4]} 23...
Ne2+ {[%clk 0:16:06.7]} 24. Kh1 {[%clk 0:13:27.6]} 24... Kxa7 {[%clk 0:16:09.7]}
25. Rb1 {[%clk 0:13:23.8]} 25... Rd7 {[%clk 0:16:06.3]} 26. a5 {[%clk
0:13:18.7]} 26... Kb7 {[%clk 0:15:53.2]} 27. a6+ {[%clk 0:13:20.4]} 27... Ka7
{[%clk 0:15:56.5]} 28. c5 {[%clk 0:13:16]} 28... Rhd8 {[%clk 0:15:56.9]} 29.
cxb6+ {[%clk 0:12:29.6]} 29... cxb6 {[%clk 0:15:59.7]} 30. c4 {[%clk 0:12:14.8]}
30... e4 {[%clk 0:16:02.5]} 31. c5 {[%clk 0:12:09.6]} 31... exd3 {[%clk
0:16:01.6]} 32. Rxb6 {[%clk 0:12:05.8]} 32... d2 {[%clk 0:16:02.8]} 33. Rb7+
{[%clk 0:11:11.3]} 33... Rxb7 {[%clk 0:16:01.6]} 34. axb7+ {[%clk 0:11:13.7]}
34... Kxb7 {[%clk 0:16:06]} 35. Rb3+ {[%clk 0:11:09.8]} 35... Kc6 {[%clk
0:16:08.4]} 36. Rb6+ {[%clk 0:10:41.7]} 36... Kxc5 {[%clk 0:16:10.9]} 37. Rxf6
{[%clk 0:10:30]} 37... d1=Q# {[%clk 0:16:14.6]} 0-1

[Event "Live Chess"]
[Site "Chess.com"]
[Date "2023.09.16"]
[Round "-"]
[White "FerreiraPedro"]
[Black "IMelefante38"]
[Result "1-0"]
[WhiteElo "1397"]
[BlackElo "781"]
[TimeControl "900+5"]
[EndTime "16:17:48 PDT"]
[Termination "FerreiraPedro venceu - partida abandonada"]

1. e4 {[%clk 0:14:55.8]} 1... d5 {[%clk 0:14:35.8]} 2. Nf3 {[%clk 0:14:56.6]}
2... dxe4 {[%clk 0:14:30.9]} 3. Ng5 {[%clk 0:14:59.5]} 3... Nf6 {[%clk
0:14:32.8]} 4. d3 {[%clk 0:15:03.1]} 4... h6 {[%clk 0:14:01]} 5. Nxe4 {[%clk
0:15:05.6]} 5... Nc6 {[%clk 0:13:53]} 6. Nxf6+ {[%clk 0:15:06.1]} 6... exf6
{[%clk 0:13:53.8]} 7. Bf4 {[%clk 0:15:08.8]} 7... Bc5 {[%clk 0:13:53.1]} 8. Nc3
{[%clk 0:15:12.4]} 8... O-O {[%clk 0:13:46]} 9. Qf3 {[%clk 0:15:16.2]} 9... Re8+
{[%clk 0:13:48.1]} 10. Be2 {[%clk 0:15:20.3]} 10... Ne5 {[%clk 0:13:43.3]} 11.
Bxe5 {[%clk 0:15:23.6]} 11... Rxe5 {[%clk 0:13:44.2]} 12. O-O {[%clk 0:15:26.5]}
12... h5 {[%clk 0:13:45.2]} 13. Rad1 {[%clk 0:15:21.3]} 13... Bh3 {[%clk
0:13:48.6]} 14. gxh3 {[%clk 0:15:18.5]} 14... Rg5+ {[%clk 0:13:52.7]} 15. Kh1
{[%clk 0:15:21]} 1-0

[Event "Live Chess"]
[Site "Chess.com"]
[Date "2023.09.16"]
[Round "-"]
[White "guto-XVI"]
[Black "Frogstetic"]
[Result "0-1"]
[WhiteElo "1489"]
[BlackElo "2015"]
[TimeControl "900+5"]
[EndTime "16:18:37 PDT"]
[Termination "Frogstetic venceu por desistência"]

1. Nf3 {[%clk 0:15:04.3]} 1... Nf6 {[%clk 0:15:01.3]} 2. d4 {[%clk 0:15:08]}
2... g6 {[%clk 0:15:02.2]} 3. c4 {[%clk 0:15:11.8]} 3... Bg7 {[%clk 0:15:06.5]}
4. Nc3 {[%clk 0:15:15.9]} 4... O-O {[%clk 0:15:10.9]} 5. g3 {[%clk 0:15:18.9]}
5... d6 {[%clk 0:15:15]} 6. Bg2 {[%clk 0:15:23.3]} 6... c6 {[%clk 0:15:12]} 7.
O-O {[%clk 0:15:27]} 7... d5 {[%clk 0:15:16.2]} 8. cxd5 {[%clk 0:15:29.6]} 8...
Nxd5 {[%clk 0:15:20.5]} 9. e4 {[%clk 0:15:32.4]} 9... Nxc3 {[%clk 0:15:20.6]}
10. bxc3 {[%clk 0:15:37.3]} 10... Be6 {[%clk 0:15:16.8]} 11. Re1 {[%clk
0:15:39.2]} 11... Qd7 {[%clk 0:15:08.3]} 12. Ng5 {[%clk 0:15:39.1]} 12... Bc4
{[%clk 0:15:12]} 13. Nf3 {[%clk 0:15:34.7]} 13... c5 {[%clk 0:15:01.2]} 14. dxc5
{[%clk 0:15:28.6]} 14... Qxd1 {[%clk 0:15:06.1]} 15. Rxd1 {[%clk 0:15:32.8]}
15... Bxc3 {[%clk 0:15:09.4]} 16. Rb1 {[%clk 0:15:37.1]} 16... Bxa2 {[%clk
0:14:16]} 17. Rxb7 {[%clk 0:15:39.5]} 17... Nc6 {[%clk 0:14:20.4]} 18. Rc7
{[%clk 0:15:31.3]} 18... Rfc8 {[%clk 0:14:21.5]} 19. Rxc8+ {[%clk 0:15:32.5]}
19... Rxc8 {[%clk 0:14:24.3]} 20. Be3 {[%clk 0:15:31.1]} 20... a5 {[%clk
0:14:14.2]} 21. e5 {[%clk 0:15:24.5]} 21... Nxe5 {[%clk 0:14:11.1]} 22. Nxe5
{[%clk 0:15:27]} 22... Bxe5 {[%clk 0:14:15.5]} 23. c6 {[%clk 0:15:31.5]} 23...
a4 {[%clk 0:14:04.5]} 24. Bb6 {[%clk 0:15:24.5]} 24... a3 {[%clk 0:13:40.4]} 25.
Rd8+ {[%clk 0:15:27]} 25... Rxd8 {[%clk 0:13:42.7]} 26. Bxd8 {[%clk 0:15:31.9]}
26... Be6 {[%clk 0:13:41.3]} 0-1

[Event "Live Chess"]
[Site "Chess.com"]
[Date "2023.09.16"]
[Round "-"]
[White "Mell46"]
[Black "Jonas_Rodrigues"]
[Result "1-0"]
[WhiteElo "1406"]
[BlackElo "1282"]
[TimeControl "900+5"]
[EndTime "16:18:58 PDT"]
[Termination "Mell46 venceu por xeque-mate"]

1. e4 {[%clk 0:15:01.7]} 1... e5 {[%clk 0:15:03.7]} 2. Nf3 {[%clk 0:15:04.7]}
2... Nc6 {[%clk 0:15:07.3]} 3. Bc4 {[%clk 0:15:08.1]} 3... Nf6 {[%clk
0:15:11.6]} 4. d3 {[%clk 0:15:11.9]} 4... Be7 {[%clk 0:15:14.7]} 5. Nc3 {[%clk
0:15:14.7]} 5... O-O {[%clk 0:15:18.8]} 6. Nd5 {[%clk 0:15:16.9]} 6... Nxd5
{[%clk 0:15:22]} 7. Bxd5 {[%clk 0:15:20.1]} 7... Nb4 {[%clk 0:15:24.3]} 8. Bc4
{[%clk 0:15:12.9]} 8... d6 {[%clk 0:15:26.1]} 9. a3 {[%clk 0:15:14.1]} 9... Nc6
{[%clk 0:15:24.9]} 10. h3 {[%clk 0:14:54]} 10... Nd4 {[%clk 0:15:23.7]} 11. c3
{[%clk 0:14:37.8]} 11... b5 {[%clk 0:15:20.1]} 12. Bxf7+ {[%clk 0:14:04.4]}
12... Rxf7 {[%clk 0:15:12.8]} 13. cxd4 {[%clk 0:14:08.8]} 13... exd4 {[%clk
0:15:11.3]} 14. Nxd4 {[%clk 0:13:44.8]} 14... Qf8 {[%clk 0:15:06.8]} 15. Qb3
{[%clk 0:13:40.6]} 15... Kh8 {[%clk 0:15:04]} 16. O-O {[%clk 0:13:35.3]} 16...
Rf6 {[%clk 0:15:03.3]} 17. Bg5 {[%clk 0:13:35.3]} 17... Rg6 {[%clk 0:15:05.7]}
18. Bxe7 {[%clk 0:13:06.7]} 18... Qe8 {[%clk 0:15:09.4]} 19. Nf5 {[%clk
0:12:07.6]} 19... Bxf5 {[%clk 0:15:03]} 20. exf5 {[%clk 0:12:10.8]} 20... Rh6
{[%clk 0:14:55.1]} 21. Rae1 {[%clk 0:11:29.1]} 21... Qd7 {[%clk 0:14:51.6]} 22.
Qd5 {[%clk 0:11:00.6]} 22... Re8 {[%clk 0:14:49.3]} 23. Bg5 {[%clk 0:10:56.6]}
23... c6 {[%clk 0:14:38.7]} 24. Rxe8+ {[%clk 0:10:57.2]} 24... Qxe8 {[%clk
0:14:42.2]} 25. Qe4 {[%clk 0:09:44.1]} 25... Qxe4 {[%clk 0:14:44.8]} 26. dxe4
{[%clk 0:09:46.6]} 26... Rh5 {[%clk 0:14:48.7]} 27. h4 {[%clk 0:09:46.3]} 27...
h6 {[%clk 0:14:51.5]} 28. g4 {[%clk 0:09:48.6]} 28... hxg5 {[%clk 0:14:51.9]}
29. gxh5 {[%clk 0:09:52]} 29... gxh4 {[%clk 0:14:52.9]} 30. Kh2 {[%clk
0:09:53.3]} 30... Kh7 {[%clk 0:14:56.5]} 31. Kh3 {[%clk 0:09:54.7]} 31... Kh6
{[%clk 0:15:00.8]} 32. Kxh4 {[%clk 0:09:57.5]} 32... Kh7 {[%clk 0:14:56]} 33.
Kg5 {[%clk 0:09:58.7]} 33... Kg8 {[%clk 0:14:59.3]} 34. Kg6 {[%clk 0:10:02.2]}
34... d5 {[%clk 0:15:02.6]} 35. f6 {[%clk 0:10:01.9]} 35... gxf6 {[%clk
0:15:05.9]} 36. Kxf6 {[%clk 0:10:05.6]} 36... Kh7 {[%clk 0:15:10.3]} 37. Rg1
{[%clk 0:10:09.2]} 37... Kh6 {[%clk 0:15:14]} 38. Kf5 {[%clk 0:10:10]} 38... d4
{[%clk 0:15:17.5]} 39. e5 {[%clk 0:10:12.9]} 39... d3 {[%clk 0:15:20.6]} 40. e6
{[%clk 0:10:17]} 40... d2 {[%clk 0:15:25.1]} 41. e7 {[%clk 0:10:19.2]} 41... a5
{[%clk 0:15:29.6]} 42. e8=Q {[%clk 0:10:21.2]} 42... d1=Q {[%clk 0:15:33.2]} 43.
Qh8# {[%clk 0:10:23.9]} 1-0

[Event "Live Chess"]
[Site "Chess.com"]
[Date "2023.09.16"]
[Round "-"]
[White "Tercette"]
[Black "stopgivingup"]
[Result "0-1"]
[WhiteElo "157"]
[BlackElo "975"]
[TimeControl "900+5"]
[EndTime "16:18:59 PDT"]
[Termination "stopgivingup venceu por xeque-mate"]

1. e4 {[%clk 0:15:02.8]} 1... c5 {[%clk 0:15:03.2]} 2. Bc4 {[%clk 0:15:05.2]}
2... e6 {[%clk 0:14:58.6]} 3. Qh5 {[%clk 0:15:08.1]} 3... Nf6 {[%clk 0:14:41.2]}
4. Qg5 {[%clk 0:15:08.9]} 4... h6 {[%clk 0:14:40.4]} 5. Qf4 {[%clk 0:15:10.7]}
5... d5 {[%clk 0:14:37.8]} 6. Ne2 {[%clk 0:15:10.2]} 6... dxc4 {[%clk
0:14:28.8]} 7. O-O {[%clk 0:15:13.6]} 7... Bd6 {[%clk 0:14:23.2]} 8. Qe3 {[%clk
0:15:13.3]} 8... Nbd7 {[%clk 0:14:15]} 9. d4 {[%clk 0:15:16.1]} 9... cxd4 {[%clk
0:14:02.2]} 10. Nxd4 {[%clk 0:15:17.6]} 10... a6 {[%clk 0:13:18.9]} 11. Bd2
{[%clk 0:15:20.3]} 11... Qc7 {[%clk 0:13:18.6]} 12. Qe1 {[%clk 0:15:23]} 12...
Bxh2+ {[%clk 0:13:18.6]} 13. Kh1 {[%clk 0:15:24]} 13... Be5 {[%clk 0:13:13.8]}
14. Ba5 {[%clk 0:15:27.2]} 14... b6 {[%clk 0:12:56.4]} 15. Bb4 {[%clk
0:15:25.6]} 15... Bxd4 {[%clk 0:12:47.6]} 16. e5 {[%clk 0:15:26.9]} 16... Bxe5
{[%clk 0:12:46.3]} 17. Nc3 {[%clk 0:15:28.9]} 17... Ng4 {[%clk 0:12:06.2]} 18.
Na4 {[%clk 0:15:27.3]} 18... Bc3 {[%clk 0:11:38.8]} 19. Qxc3 {[%clk 0:15:26.8]}
19... Qh2# {[%clk 0:11:39.6]} 0-1

[Event "Live Chess"]
[Site "Chess.com"]
[Date "2023.09.16"]
[Round "-"]
[White "MNPedroh"]
[Black "Gustavoksbr"]
[Result "0-1"]
[WhiteElo "1852"]
[BlackElo "1908"]
[TimeControl "900+5"]
[EndTime "16:19:03 PDT"]
[Termination "Gustavoksbr venceu por desistência"]

1. e4 {[%clk 0:15:04.3]} 1... e5 {[%clk 0:15:02.4]} 2. Nf3 {[%clk 0:15:08.8]}
2... Nc6 {[%clk 0:15:06.2]} 3. Bc4 {[%clk 0:15:13.4]} 3... Nf6 {[%clk 0:15:10]}
4. d3 {[%clk 0:15:17.5]} 4... Bc5 {[%clk 0:15:13.7]} 5. Nc3 {[%clk 0:15:21.8]}
5... d6 {[%clk 0:15:17.9]} 6. Ne2 {[%clk 0:15:25.2]} 6... Bg4 {[%clk 0:15:21.1]}
7. Ng3 {[%clk 0:15:29.3]} 7... Nd4 {[%clk 0:15:05.6]} 8. c3 {[%clk 0:15:32.6]}
8... Nxf3+ {[%clk 0:15:02.3]} 9. gxf3 {[%clk 0:15:37.5]} 9... Bh3 {[%clk
0:15:05.9]} 10. d4 {[%clk 0:15:36.6]} 10... exd4 {[%clk 0:15:06.3]} 11. cxd4
{[%clk 0:15:41.5]} 11... Bb4+ {[%clk 0:15:07.4]} 12. Bd2 {[%clk 0:15:18.3]}
12... Bxd2+ {[%clk 0:15:06]} 13. Kxd2 {[%clk 0:14:56.1]} 13... O-O {[%clk
0:14:17]} 14. Rg1 {[%clk 0:14:59.1]} 14... d5 {[%clk 0:14:10.8]} 15. exd5 {[%clk
0:14:47.2]} 15... Nxd5 {[%clk 0:14:04.2]} 16. Ne4 {[%clk 0:14:22]} 16... Nb6
{[%clk 0:13:36.1]} 17. Kc3 {[%clk 0:14:17.3]} 17... Nxc4 {[%clk 0:13:21.8]} 18.
Kxc4 {[%clk 0:14:22.2]} 18... b5+ {[%clk 0:13:20.6]} 19. Kc3 {[%clk 0:14:10.4]}
19... b4+ {[%clk 0:13:18.3]} 20. Kxb4 {[%clk 0:13:54.3]} 20... Rb8+ {[%clk
0:12:03.8]} 21. Kc3 {[%clk 0:13:57.4]} 21... Qe7 {[%clk 0:11:58.3]} 22. a3
{[%clk 0:13:51.3]} 22... Be6 {[%clk 0:11:44.5]} 23. b4 {[%clk 0:13:46.1]} 23...
Rfd8 {[%clk 0:11:00.4]} 24. Nc5 {[%clk 0:13:18.2]} 24... Rb6 {[%clk 0:10:13.5]}
25. Qd2 {[%clk 0:12:37.7]} 25... Qf6 {[%clk 0:10:09.2]} 26. Qe3 {[%clk
0:11:59.5]} 26... a5 {[%clk 0:09:34.2]} 27. Rg3 {[%clk 0:11:25.8]} 27... axb4+
{[%clk 0:09:22.7]} 28. axb4 {[%clk 0:11:30.7]} 28... Rdb8 {[%clk 0:08:26.2]} 29.
Ra4 {[%clk 0:11:02.7]} 29... Rc6 {[%clk 0:08:18]} 30. f4 {[%clk 0:09:55.8]}
30... Rxc5+ {[%clk 0:08:09.7]} 0-1